[Event "*** Titled Tuesday Blitz"]
[Site "Chess.com"]
[Date "2020.04.21"]
[Round "9"]
[White "ChelsieMonica"]
[Black "YPradafah"]
[Result "1-0"]
[WhiteElo "2340"]
[BlackElo "2433"]
[TimeControl "180+1"]
[EndTime "11:44:27 PDT"]
[Termination "ChelsieMonica won by resignation"]

1. c4 {[%clk 0:03:00.9]} 1... c6 {[%clk 0:02:57]} 2. Nf3 {[%clk 0:02:58.9]} 2...
g6 {[%clk 0:02:56.7]} 3. e3 {[%clk 0:02:59.8]} 3... Bg7 {[%clk 0:02:56.6]} 4.
Be2 {[%clk 0:02:59.9]} 4... d6 {[%clk 0:02:56.2]} 5. O-O {[%clk 0:03:00]} 5...
f5 {[%clk 0:02:56.5]} 6. Nc3 {[%clk 0:03:00.3]} 6... Nf6 {[%clk 0:02:56.8]} 7.
b3 {[%clk 0:03:00.6]} 7... O-O {[%clk 0:02:55.8]} 8. Bb2 {[%clk 0:03:00.9]} 8...
h6 {[%clk 0:02:52.5]} 9. Qc2 {[%clk 0:02:58.9]} 9... g5 {[%clk 0:02:47.6]} 10.
d4 {[%clk 0:02:56.6]} 10... Qe8 {[%clk 0:02:42.8]} 11. Bd3 {[%clk 0:02:46.9]}
11... g4 {[%clk 0:02:41.1]} 12. Nh4 {[%clk 0:02:36.8]} 12... Qh5 {[%clk
0:02:29.6]} 13. Nxf5 {[%clk 0:02:27.6]} 13... Na6 {[%clk 0:02:20.6]} 14. Nxe7+
{[%clk 0:02:24.4]} 1-0

[Event "*** Titled Tuesday Blitz"]
[Site "Chess.com"]
[Date "2020.04.21"]
[Round "9"]
[White "Gennady_Kozlov"]
[Black "GuerrieroFromLevant"]
[Result "1-0"]
[WhiteElo "2579"]
[BlackElo "2423"]
[TimeControl "180+1"]
[EndTime "11:44:37 PDT"]
[Termination "Gennady_Kozlov won by resignation"]

1. b3 {[%clk 0:03:00.9]} 1... d5 {[%clk 0:02:59.3]} 2. Bb2 {[%clk 0:03:01.8]}
2... Nf6 {[%clk 0:03:00.2]} 3. e3 {[%clk 0:03:02.3]} 3... c5 {[%clk 0:03:00.2]}
4. f4 {[%clk 0:03:02.1]} 4... Nc6 {[%clk 0:03:00.4]} 5. Nf3 {[%clk 0:03:02.8]}
5... g6 {[%clk 0:02:59.2]} 6. Be2 {[%clk 0:03:03.3]} 6... Bg7 {[%clk 0:02:59.8]}
7. O-O {[%clk 0:03:04.2]} 7... O-O {[%clk 0:03:00.4]} 8. Ne5 {[%clk 0:03:04.6]}
8... Nd7 {[%clk 0:02:56.3]} 9. Nxc6 {[%clk 0:03:04.1]} 9... bxc6 {[%clk
0:02:56.6]} 10. Bxg7 {[%clk 0:03:04.3]} 10... Kxg7 {[%clk 0:02:57.5]} 11. d3
{[%clk 0:03:02.8]} 11... e5 {[%clk 0:02:55.9]} 12. f5 {[%clk 0:03:02.8]} 12...
Nf6 {[%clk 0:02:55.3]} 13. fxg6 {[%clk 0:03:00.7]} 13... fxg6 {[%clk 0:02:55]}
14. Nd2 {[%clk 0:03:00.1]} 14... Qe7 {[%clk 0:02:52.3]} 15. Qe1 {[%clk
0:02:59.3]} 15... Bd7 {[%clk 0:02:48.5]} 16. Qg3 {[%clk 0:02:58.3]} 16... Rf7
{[%clk 0:02:48.6]} 17. e4 {[%clk 0:02:57.7]} 17... Raf8 {[%clk 0:02:48.5]} 18.
Bf3 {[%clk 0:02:55.9]} 18... h5 {[%clk 0:02:45.6]} 19. Rae1 {[%clk 0:02:53]}
19... d4 {[%clk 0:02:43.1]} 20. Nc4 {[%clk 0:02:51]} 20... Re8 {[%clk
0:02:37.8]} 21. Rf2 {[%clk 0:02:44.1]} 21... Qf8 {[%clk 0:02:36.2]} 22. Nxe5
{[%clk 0:02:30.7]} 22... Rxe5 {[%clk 0:02:28.6]} 23. Qxe5 {[%clk 0:02:31.6]} 1-0

[Event "*** Titled Tuesday Blitz"]
[Site "Chess.com"]
[Date "2020.04.21"]
[Round "9"]
[White "francyIM"]
[Black "Piotrek1979"]
[Result "0-1"]
[WhiteElo "2661"]
[BlackElo "2458"]
[TimeControl "180+1"]
[EndTime "11:45:20 PDT"]
[Termination "Piotrek1979 won by resignation"]

1. c4 {[%clk 0:03:00.9]} 1... g6 {[%clk 0:02:59]} 2. g3 {[%clk 0:02:52]} 2...
Bg7 {[%clk 0:02:59.9]} 3. Bg2 {[%clk 0:02:51.1]} 3... d6 {[%clk 0:03:00.5]} 4.
Nc3 {[%clk 0:02:51.6]} 4... c5 {[%clk 0:02:59.6]} 5. Nf3 {[%clk 0:02:48.4]} 5...
Nc6 {[%clk 0:02:59.6]} 6. O-O {[%clk 0:02:49]} 6... Rb8 {[%clk 0:02:56.5]} 7. e3
{[%clk 0:02:46.9]} 7... Bd7 {[%clk 0:02:53.4]} 8. d4 {[%clk 0:02:45.5]} 8... Nf6
{[%clk 0:02:53.2]} 9. Qe2 {[%clk 0:02:40]} 9... O-O {[%clk 0:02:52.1]} 10. Rd1
{[%clk 0:02:38.9]} 10... a6 {[%clk 0:02:47.9]} 11. b3 {[%clk 0:02:37.7]} 11...
b5 {[%clk 0:02:42.7]} 12. cxb5 {[%clk 0:02:37.3]} 12... axb5 {[%clk 0:02:43.6]}
13. Bb2 {[%clk 0:02:37.6]} 13... b4 {[%clk 0:02:41.6]} 14. Na4 {[%clk
0:02:37.1]} 14... cxd4 {[%clk 0:02:34.5]} 15. exd4 {[%clk 0:02:33.3]} 15... Qa5
{[%clk 0:02:28.3]} 16. d5 {[%clk 0:02:26.3]} 16... Nxd5 {[%clk 0:02:19.6]} 17.
Rxd5 {[%clk 0:02:24.1]} 17... Qxd5 {[%clk 0:02:14.9]} 18. Ne5 {[%clk 0:02:23.1]}
18... Qe6 {[%clk 0:02:06.7]} 0-1

[Event "*** Titled Tuesday Blitz"]
[Site "Chess.com"]
[Date "2020.04.21"]
[Round "9"]
[White "GmSergioBarrientos"]
[Black "Zurability"]
[Result "1-0"]
[WhiteElo "2593"]
[BlackElo "2714"]
[TimeControl "180+1"]
[EndTime "11:45:27 PDT"]
[Termination "GmSergioBarrientos won by resignation"]

1. d4 {[%clk 0:03:00.9]} 1... Nf6 {[%clk 0:02:59.3]} 2. c4 {[%clk 0:02:59.4]}
2... e6 {[%clk 0:02:57.7]} 3. Nf3 {[%clk 0:02:59]} 3... b6 {[%clk 0:02:57.9]} 4.
a3 {[%clk 0:02:58.8]} 4... Bb7 {[%clk 0:02:57.6]} 5. Nc3 {[%clk 0:02:58.2]} 5...
d5 {[%clk 0:02:58.2]} 6. cxd5 {[%clk 0:02:57.9]} 6... Nxd5 {[%clk 0:02:57.4]} 7.
e3 {[%clk 0:02:58.1]} 7... Be7 {[%clk 0:02:56.9]} 8. Bb5+ {[%clk 0:02:58.3]}
8... c6 {[%clk 0:02:53.7]} 9. Bd3 {[%clk 0:02:58.4]} 9... O-O {[%clk 0:02:54.1]}
10. O-O {[%clk 0:02:57.8]} 10... Nxc3 {[%clk 0:02:54.8]} 11. bxc3 {[%clk
0:02:57]} 11... c5 {[%clk 0:02:55.7]} 12. Bb2 {[%clk 0:02:53.1]} 12... Nd7
{[%clk 0:02:51.3]} 13. e4 {[%clk 0:02:53.2]} 13... cxd4 {[%clk 0:02:46.7]} 14.
cxd4 {[%clk 0:02:53.1]} 14... Nf6 {[%clk 0:02:46.9]} 15. Qe2 {[%clk 0:02:51.3]}
15... Rc8 {[%clk 0:02:46.8]} 16. Rfd1 {[%clk 0:02:42.2]} 16... Rc7 {[%clk
0:02:46.6]} 17. h3 {[%clk 0:02:28.3]} 17... Qa8 {[%clk 0:02:46.1]} 18. Re1
{[%clk 0:02:21.2]} 18... a6 {[%clk 0:02:45.8]} 19. Rad1 {[%clk 0:02:17]} 19...
b5 {[%clk 0:02:46]} 20. Qe3 {[%clk 0:02:09.9]} 20... Rd8 {[%clk 0:02:39.3]} 21.
Qf4 {[%clk 0:02:09.5]} 21... h6 {[%clk 0:02:30.7]} 22. Qxc7 {[%clk 0:02:07.7]}
1-0

[Event "*** Titled Tuesday Blitz"]
[Site "Chess.com"]
[Date "2020.04.21"]
[Round "9"]
[White "KarpovVadim"]
[Black "LuckSlayeer"]
[Result "0-1"]
[WhiteElo "2322"]
[BlackElo "2498"]
[TimeControl "180+1"]
[EndTime "11:45:32 PDT"]
[Termination "LuckSlayeer won by resignation"]

1. Nf3 {[%clk 0:03:00.3]} 1... d5 {[%clk 0:02:59]} 2. d4 {[%clk 0:02:59]} 2...
Nf6 {[%clk 0:02:58.3]} 3. c4 {[%clk 0:02:58.6]} 3... e6 {[%clk 0:02:56.7]} 4.
Nc3 {[%clk 0:02:58.1]} 4... Be7 {[%clk 0:02:56.5]} 5. Bg5 {[%clk 0:02:56.7]}
5... O-O {[%clk 0:02:56.4]} 6. e3 {[%clk 0:02:55.6]} 6... h6 {[%clk 0:02:56.2]}
7. Bh4 {[%clk 0:02:54.4]} 7... c6 {[%clk 0:02:55.7]} 8. Qc2 {[%clk 0:02:52.2]}
8... Nbd7 {[%clk 0:02:53.2]} 9. Rd1 {[%clk 0:02:52.1]} 9... dxc4 {[%clk
0:02:48.7]} 10. Bxc4 {[%clk 0:02:50.7]} 10... b5 {[%clk 0:02:49.3]} 11. Bd3
{[%clk 0:02:48]} 11... Bb7 {[%clk 0:02:49.8]} 12. O-O {[%clk 0:02:46.9]} 12...
a6 {[%clk 0:02:49]} 13. e4 {[%clk 0:02:42.7]} 13... c5 {[%clk 0:02:46.6]} 14.
dxc5 {[%clk 0:02:30.7]} 14... Nxc5 {[%clk 0:02:29.4]} 15. Bxf6 {[%clk
0:02:27.9]} 15... gxf6 {[%clk 0:02:16.2]} 16. Bxb5 {[%clk 0:02:26]} 16... Qb6
{[%clk 0:02:12.9]} 17. Be2 {[%clk 0:02:21]} 17... Rfd8 {[%clk 0:02:12.2]} 18. e5
{[%clk 0:02:18]} 18... f5 {[%clk 0:02:08.7]} 19. b3 {[%clk 0:02:12.6]} 19...
Rac8 {[%clk 0:02:06.7]} 20. Rxd8+ {[%clk 0:02:11.2]} 20... Bxd8 {[%clk
0:02:05.8]} 21. Qd3 {[%clk 0:02:01.2]} 21... Nxd3 {[%clk 0:02:04.9]} 0-1

[Event "*** Titled Tuesday Blitz"]
[Site "Chess.com"]
[Date "2020.04.21"]
[Round "9"]
[White "ItsCheckM8Mate"]
[Black "Chichin_chao"]
[Result "1/2-1/2"]
[WhiteElo "2246"]
[BlackElo "2358"]
[TimeControl "180+1"]
[EndTime "11:46:09 PDT"]
[Termination "Game drawn by repetition"]

1. e4 {[%clk 0:03:00.9]} 1... c5 {[%clk 0:02:58.4]} 2. Nf3 {[%clk 0:03:00.1]}
2... e6 {[%clk 0:02:58.9]} 3. d4 {[%clk 0:03:00.5]} 3... cxd4 {[%clk 0:02:59.8]}
4. Nxd4 {[%clk 0:03:00.5]} 4... a6 {[%clk 0:03:00.1]} 5. c4 {[%clk 0:03:00]}
5... Nf6 {[%clk 0:02:59.5]} 6. Nc3 {[%clk 0:03:00.3]} 6... Qc7 {[%clk 0:03:00]}
7. a3 {[%clk 0:02:59.9]} 7... Be7 {[%clk 0:02:56.5]} 8. Be3 {[%clk 0:02:59.6]}
8... O-O {[%clk 0:02:55.9]} 9. Be2 {[%clk 0:02:59.8]} 9... b6 {[%clk 0:02:52]}
10. Rc1 {[%clk 0:02:50.3]} 10... Bb7 {[%clk 0:02:51.6]} 11. f3 {[%clk
0:02:50.6]} 11... d6 {[%clk 0:02:51.2]} 12. O-O {[%clk 0:02:50.2]} 12... Nbd7
{[%clk 0:02:50.9]} 13. Qd2 {[%clk 0:02:50.4]} 13... Rac8 {[%clk 0:02:49.5]} 14.
Rfd1 {[%clk 0:02:50.4]} 14... Rfe8 {[%clk 0:02:48.4]} 15. b4 {[%clk 0:02:50.4]}
15... Qb8 {[%clk 0:02:48.4]} 16. Nb3 {[%clk 0:02:50.6]} 16... Qa8 {[%clk
0:02:46]} 17. Kh1 {[%clk 0:02:38.8]} 17... Bf8 {[%clk 0:02:36.4]} 18. Na4 {[%clk
0:02:35]} 18... Rc6 {[%clk 0:02:30.6]} 19. Qe1 {[%clk 0:02:12]} 19... Be7 {[%clk
0:02:19.4]} 20. Qf2 {[%clk 0:02:03.1]} 20... Bd8 {[%clk 0:02:19.6]} 21. Nd4
{[%clk 0:01:54]} 21... Rc8 {[%clk 0:02:18.2]} 22. Nb3 {[%clk 0:01:49]} 22... Rc6
{[%clk 0:02:17.7]} 23. Nd4 {[%clk 0:01:48.2]} 23... Rc8 {[%clk 0:02:17.6]} 24.
Nb3 {[%clk 0:01:32.2]} 24... Rc6 {[%clk 0:02:02.9]} 1/2-1/2

[Event "*** Titled Tuesday Blitz"]
[Site "Chess.com"]
[Date "2020.04.21"]
[Round "9"]
[White "emperor87"]
[Black "Nakachuk"]
[Result "0-1"]
[WhiteElo "2643"]
[BlackElo "2778"]
[TimeControl "180+1"]
[EndTime "11:46:15 PDT"]
[Termination "Nakachuk won by resignation"]

1. Nf3 {[%clk 0:03:00.9]} 1... Nf6 {[%clk 0:03:00]} 2. g3 {[%clk 0:03:01]} 2...
g6 {[%clk 0:03:00.4]} 3. Bg2 {[%clk 0:03:01.6]} 3... Bg7 {[%clk 0:03:00.9]} 4.
O-O {[%clk 0:03:02.2]} 4... O-O {[%clk 0:03:01.4]} 5. c4 {[%clk 0:03:02.8]} 5...
c5 {[%clk 0:03:01.6]} 6. d4 {[%clk 0:03:02]} 6... d6 {[%clk 0:02:59.7]} 7. Nc3
{[%clk 0:03:00.9]} 7... Nc6 {[%clk 0:02:59.9]} 8. d5 {[%clk 0:03:01.2]} 8... Na5
{[%clk 0:03:00.1]} 9. Nd2 {[%clk 0:03:01.3]} 9... a6 {[%clk 0:03:00.7]} 10. e4
{[%clk 0:02:58.8]} 10... Rb8 {[%clk 0:02:59]} 11. a4 {[%clk 0:02:55.6]} 11...
Bd7 {[%clk 0:02:56.1]} 12. h3 {[%clk 0:02:49.2]} 12... b5 {[%clk 0:02:55.3]} 13.
axb5 {[%clk 0:02:47.6]} 13... axb5 {[%clk 0:02:56.2]} 14. cxb5 {[%clk
0:02:46.2]} 14... Bxb5 {[%clk 0:02:57.1]} 15. Re1 {[%clk 0:02:42.7]} 15... Nd7
{[%clk 0:02:55.6]} 16. Kh2 {[%clk 0:02:39.6]} 16... Bd3 {[%clk 0:02:49.2]} 17.
f4 {[%clk 0:02:30.7]} 17... c4 {[%clk 0:02:48.4]} 18. Nf3 {[%clk 0:02:25.7]}
18... Nb3 {[%clk 0:02:43.5]} 19. Ra3 {[%clk 0:02:25.7]} 19... Nxc1 {[%clk
0:02:43.2]} 20. Qxc1 {[%clk 0:02:23.7]} 20... Nc5 {[%clk 0:02:43.5]} 21. e5
{[%clk 0:02:20.8]} 21... Qb6 {[%clk 0:02:42.7]} 22. Ra2 {[%clk 0:02:16.8]} 22...
Nb3 {[%clk 0:02:39.4]} 23. Qd1 {[%clk 0:02:11]} 23... Rfd8 {[%clk 0:02:34]} 24.
e6 {[%clk 0:02:07.1]} 24... f5 {[%clk 0:02:33.1]} 25. Nd2 {[%clk 0:01:51.3]}
25... Qf2 {[%clk 0:02:28.3]} 26. Nxb3 {[%clk 0:01:25.7]} 26... Rxb3 {[%clk
0:02:29.2]} 27. Qc1 {[%clk 0:01:24]} 27... Bxc3 {[%clk 0:02:22.2]} 0-1

[Event "*** Titled Tuesday Blitz"]
[Site "Chess.com"]
[Date "2020.04.21"]
[Round "9"]
[White "viditchess"]
[Black "Hikaru"]
[Result "1/2-1/2"]
[WhiteElo "2979"]
[BlackElo "3231"]
[TimeControl "180+1"]
[EndTime "11:46:37 PDT"]
[Termination "Game drawn by agreement"]

1. d4 {[%clk 0:03:00.9]} 1... Nf6 {[%clk 0:02:58.8]} 2. c4 {[%clk 0:03:01]} 2...
e6 {[%clk 0:02:58.8]} 3. Nf3 {[%clk 0:03:01.3]} 3... d5 {[%clk 0:02:58.7]} 4. g3
{[%clk 0:02:58.7]} 4... Be7 {[%clk 0:02:58.3]} 5. Bg2 {[%clk 0:02:58.9]} 5...
O-O {[%clk 0:02:58.7]} 6. O-O {[%clk 0:02:59.4]} 6... dxc4 {[%clk 0:02:59]} 7.
Qc2 {[%clk 0:02:59.8]} 7... a6 {[%clk 0:02:58.9]} 8. a4 {[%clk 0:03:00.1]} 8...
Bd7 {[%clk 0:02:59.2]} 9. Qxc4 {[%clk 0:03:00]} 9... Bc6 {[%clk 0:02:59.1]} 10.
Bg5 {[%clk 0:03:00.6]} 10... Nbd7 {[%clk 0:02:59]} 11. Rd1 {[%clk 0:02:58]}
11... h6 {[%clk 0:02:40.4]} 12. Bxf6 {[%clk 0:02:57.7]} 12... Nxf6 {[%clk
0:02:41]} 13. Nc3 {[%clk 0:02:57.9]} 13... a5 {[%clk 0:02:34.9]} 14. e3 {[%clk
0:02:49.1]} 14... Bxf3 {[%clk 0:02:34.5]} 15. Bxf3 {[%clk 0:02:49.9]} 15... c6
{[%clk 0:02:35.4]} 16. Qb3 {[%clk 0:02:44.7]} 16... Qc7 {[%clk 0:02:31.7]} 17.
Ne2 {[%clk 0:02:44.6]} 17... Rac8 {[%clk 0:02:25.3]} 18. Nf4 {[%clk 0:02:43.2]}
18... Bd6 {[%clk 0:02:22.7]} 19. Nd3 {[%clk 0:02:43.2]} 19... Nd7 {[%clk
0:02:20.6]} 20. Kg2 {[%clk 0:02:32.9]} 20... Qb6 {[%clk 0:02:18.7]} 21. Qc4
{[%clk 0:01:56.6]} 21... Rfe8 {[%clk 0:02:15.2]} 22. Rac1 {[%clk 0:01:53.8]}
22... Qd8 {[%clk 0:02:08.2]} 23. h4 {[%clk 0:01:51]} 23... Qe7 {[%clk
0:02:06.5]} 24. h5 {[%clk 0:01:49.4]} 24... e5 {[%clk 0:02:01.4]} 25. dxe5
{[%clk 0:01:33.8]} 25... Nxe5 {[%clk 0:01:57.4]} 26. Nxe5 {[%clk 0:01:34]} 26...
Bxe5 {[%clk 0:01:58.3]} 27. Rd2 {[%clk 0:01:21]} 27... Rcd8 {[%clk 0:01:58.2]}
28. Rcd1 {[%clk 0:01:20.3]} 28... Rxd2 {[%clk 0:01:56.2]} 29. Rxd2 {[%clk
0:01:21.2]} 29... Rd8 {[%clk 0:01:56.8]} 30. Rxd8+ {[%clk 0:01:19.4]} 30... Qxd8
{[%clk 0:01:56.6]} 1/2-1/2

[Event "*** Titled Tuesday Blitz"]
[Site "Chess.com"]
[Date "2020.04.21"]
[Round "9"]
[White "CMS13"]
[Black "Eliwood44"]
[Result "1-0"]
[WhiteElo "2140"]
[BlackElo "2297"]
[TimeControl "180+1"]
[EndTime "11:46:44 PDT"]
[Termination "CMS13 won by resignation"]

1. e4 {[%clk 0:03:00.9]} 1... e5 {[%clk 0:02:58.4]} 2. Bc4 {[%clk 0:03:00.4]}
2... Nf6 {[%clk 0:02:57.8]} 3. Nc3 {[%clk 0:02:59.8]} 3... Nxe4 {[%clk
0:02:51.9]} 4. Qh5 {[%clk 0:02:58.8]} 4... Nd6 {[%clk 0:02:51.3]} 5. Qxe5+
{[%clk 0:02:58.5]} 5... Qe7 {[%clk 0:02:50.9]} 6. Qxe7+ {[%clk 0:02:58.6]} 6...
Bxe7 {[%clk 0:02:51.8]} 7. Bb3 {[%clk 0:02:58.8]} 7... O-O {[%clk 0:02:50.3]} 8.
Nf3 {[%clk 0:02:56.6]} 8... Nf5 {[%clk 0:02:47.3]} 9. d4 {[%clk 0:02:56.5]} 9...
c6 {[%clk 0:02:31.7]} 10. d5 {[%clk 0:02:55.7]} 10... Re8 {[%clk 0:02:21.6]} 11.
O-O {[%clk 0:02:54.8]} 11... d6 {[%clk 0:02:17]} 12. Bf4 {[%clk 0:02:51.2]}
12... Na6 {[%clk 0:02:03.3]} 13. h3 {[%clk 0:02:40.7]} 13... Nc5 {[%clk
0:02:02.2]} 14. Rad1 {[%clk 0:02:37.2]} 14... Nxb3 {[%clk 0:01:58.1]} 15. axb3
{[%clk 0:02:36.7]} 15... c5 {[%clk 0:01:58.3]} 16. Rfe1 {[%clk 0:02:31.8]} 16...
Bd7 {[%clk 0:01:55.8]} 17. g4 {[%clk 0:02:27.3]} 17... Nh6 {[%clk 0:01:43.8]}
18. Ne4 {[%clk 0:02:25.1]} 18... Nxg4 {[%clk 0:01:19.2]} 19. hxg4 {[%clk
0:02:21.6]} 19... Bxg4 {[%clk 0:01:20.1]} 20. Rd3 {[%clk 0:02:17.1]} 20... Bf8
{[%clk 0:01:16.1]} 21. Nh2 {[%clk 0:02:07]} 21... Bf5 {[%clk 0:01:11]} 22. Rde3
{[%clk 0:02:06.9]} 22... Red8 {[%clk 0:01:07.1]} 23. c4 {[%clk 0:02:04.5]} 23...
a6 {[%clk 0:01:04.9]} 24. Nf3 {[%clk 0:02:03.7]} 24... b5 {[%clk 0:00:59.5]} 25.
Nxd6 {[%clk 0:01:58.1]} 1-0

[Event "*** Titled Tuesday Blitz"]
[Site "Chess.com"]
[Date "2020.04.21"]
[Round "9"]
[White "lestri"]
[Black "Mischuk_D"]
[Result "1-0"]
[WhiteElo "2577"]
[BlackElo "2691"]
[TimeControl "180+1"]
[EndTime "11:46:46 PDT"]
[Termination "lestri won by resignation"]

1. c4 {[%clk 0:03:00.9]} 1... e6 {[%clk 0:02:59.2]} 2. Nf3 {[%clk 0:03:00]} 2...
d5 {[%clk 0:02:59.4]} 3. e3 {[%clk 0:03:00.5]} 3... Nf6 {[%clk 0:02:59.2]} 4. b3
{[%clk 0:03:00.3]} 4... c5 {[%clk 0:02:58.6]} 5. cxd5 {[%clk 0:02:59.3]} 5...
Nxd5 {[%clk 0:02:58.6]} 6. Bb2 {[%clk 0:02:58]} 6... Nc6 {[%clk 0:02:58.7]} 7.
a3 {[%clk 0:02:55.9]} 7... Nf6 {[%clk 0:02:59]} 8. Be2 {[%clk 0:02:54]} 8... Be7
{[%clk 0:02:59.4]} 9. O-O {[%clk 0:02:53.9]} 9... O-O {[%clk 0:02:59.7]} 10. d4
{[%clk 0:02:53.5]} 10... cxd4 {[%clk 0:02:58.7]} 11. Nxd4 {[%clk 0:02:52.9]}
11... Nxd4 {[%clk 0:02:59.1]} 12. Bxd4 {[%clk 0:02:52.1]} 12... Bd7 {[%clk
0:03:00]} 13. Bf3 {[%clk 0:02:51.4]} 13... Qc7 {[%clk 0:02:57.7]} 14. Nd2 {[%clk
0:02:47.8]} 14... Bc6 {[%clk 0:02:46.3]} 15. Rc1 {[%clk 0:02:46.3]} 15... Bxf3
{[%clk 0:02:44.6]} 16. Qxf3 {[%clk 0:02:45.7]} 16... Qd7 {[%clk 0:02:36.2]} 17.
Nc4 {[%clk 0:02:41.4]} 17... Qd5 {[%clk 0:02:33.5]} 18. Qxd5 {[%clk 0:02:28.2]}
18... Nxd5 {[%clk 0:02:34.4]} 19. a4 {[%clk 0:02:18.1]} 19... Rfc8 {[%clk
0:02:33.9]} 20. Na5 {[%clk 0:02:14.7]} 20... b6 {[%clk 0:02:19.5]} 21. Nc6
{[%clk 0:02:13.7]} 21... Rc7 {[%clk 0:02:14.6]} 22. Be5 {[%clk 0:01:59.4]} 22...
Rd7 {[%clk 0:02:11.3]} 23. e4 {[%clk 0:01:58.6]} 23... Nb4 {[%clk 0:02:08.8]}
24. Nxe7+ {[%clk 0:01:46.4]} 24... Rxe7 {[%clk 0:02:02.4]} 25. Bd6 {[%clk
0:01:46.3]} 25... Rd7 {[%clk 0:02:02.3]} 26. Bxb4 {[%clk 0:01:45.3]} 26... Rd3
{[%clk 0:02:03.2]} 27. Rc3 {[%clk 0:01:44.3]} 27... Rd4 {[%clk 0:02:03.5]} 28.
Rfc1 {[%clk 0:01:38.3]} 28... h5 {[%clk 0:02:03.7]} 29. Rc4 {[%clk 0:01:38]}
29... Rd3 {[%clk 0:02:03.6]} 30. Bc3 {[%clk 0:01:37.4]} 30... Kh7 {[%clk
0:02:02.8]} 31. Kf1 {[%clk 0:01:36.9]} 31... Rad8 {[%clk 0:02:02.1]} 32. Ke2
{[%clk 0:01:36.8]} 32... R8d7 {[%clk 0:02:02.4]} 33. Rc2 {[%clk 0:01:35.6]}
33... Rd1 {[%clk 0:02:00.8]} 34. Rd2 {[%clk 0:01:34.8]} 34... R7xd2+ {[%clk
0:02:01]} 35. Bxd2 {[%clk 0:01:34.7]} 35... Rb1 {[%clk 0:02:01.9]} 36. b4 {[%clk
0:01:34.2]} 36... Ra1 {[%clk 0:02:00.1]} 37. a5 {[%clk 0:01:33.7]} 37... Kg6
{[%clk 0:01:59.2]} 38. Rc7 {[%clk 0:01:32.2]} 38... Rxa5 {[%clk 0:01:54.3]} 39.
bxa5 {[%clk 0:01:31.1]} 1-0

[Event "*** Titled Tuesday Blitz"]
[Site "Chess.com"]
[Date "2020.04.21"]
[Round "9"]
[White "zurzan"]
[Black "Bajecny"]
[Result "1-0"]
[WhiteElo "2047"]
[BlackElo "2360"]
[TimeControl "180+1"]
[EndTime "11:46:47 PDT"]
[Termination "zurzan won by resignation"]

1. f4 {[%clk 0:03:00.9]} 1... d5 {[%clk 0:02:59.2]} 2. Nf3 {[%clk 0:03:00.7]}
2... c5 {[%clk 0:02:59.7]} 3. g3 {[%clk 0:03:00.8]} 3... Nc6 {[%clk 0:03:00.2]}
4. Bg2 {[%clk 0:03:01.7]} 4... Nf6 {[%clk 0:03:00.1]} 5. O-O {[%clk 0:03:02.6]}
5... g6 {[%clk 0:03:00.6]} 6. d3 {[%clk 0:03:03.1]} 6... Bg7 {[%clk 0:03:01.1]}
7. c3 {[%clk 0:03:03.9]} 7... O-O {[%clk 0:03:00.9]} 8. Qe1 {[%clk 0:03:04.8]}
8... d4 {[%clk 0:02:58.8]} 9. Na3 {[%clk 0:03:01.3]} 9... e5 {[%clk 0:02:49.9]}
10. fxe5 {[%clk 0:02:58.4]} 10... Ng4 {[%clk 0:02:50.2]} 11. Nc4 {[%clk
0:02:50.4]} 11... Ncxe5 {[%clk 0:02:44.8]} 12. Ncxe5 {[%clk 0:02:49.3]} 12...
Nxe5 {[%clk 0:02:45.7]} 13. Nxe5 {[%clk 0:02:49.1]} 13... Bxe5 {[%clk
0:02:46.6]} 14. Bf4 {[%clk 0:02:41.4]} 14... Bg7 {[%clk 0:02:41.3]} 15. c4
{[%clk 0:02:35]} 15... Qb6 {[%clk 0:02:32.9]} 16. Rb1 {[%clk 0:02:32]} 16... Be6
{[%clk 0:02:29.5]} 17. b4 {[%clk 0:02:30.7]} 17... Rfe8 {[%clk 0:02:00.4]} 18.
bxc5 {[%clk 0:02:27.3]} 18... Qxc5 {[%clk 0:02:01.3]} 19. Rb5 {[%clk 0:02:17.5]}
19... Qa3 {[%clk 0:01:59]} 20. Qb1 {[%clk 0:02:07.3]} 20... Bg4 {[%clk
0:01:49.4]} 21. Rb3 {[%clk 0:01:56.6]} 21... Qa4 {[%clk 0:01:37.4]} 22. Rb4
{[%clk 0:01:54]} 22... Qa5 {[%clk 0:01:29.1]} 23. Rb5 {[%clk 0:01:53]} 23... Qa3
{[%clk 0:01:25.7]} 24. Rb3 {[%clk 0:01:52.1]} 24... Qf8 {[%clk 0:01:20.7]} 25.
Bxb7 {[%clk 0:01:41.5]} 25... Rxe2 {[%clk 0:01:20.5]} 26. Bxa8 {[%clk
0:01:39.7]} 26... Qxa8 {[%clk 0:01:21.4]} 27. Rb8+ {[%clk 0:01:38.7]} 1-0

[Event "*** Titled Tuesday Blitz"]
[Site "Chess.com"]
[Date "2020.04.21"]
[Round "9"]
[White "harkerchess"]
[Black "Qingdom"]
[Result "0-1"]
[WhiteElo "1946"]
[BlackElo "2191"]
[TimeControl "180+1"]
[EndTime "11:47:10 PDT"]
[Termination "Qingdom won by resignation"]

1. d4 {[%clk 0:00:51.9]} 1... d5 {[%clk 0:02:58.4]} 2. c4 {[%clk 0:00:51.7]}
2... e6 {[%clk 0:02:58.1]} 3. Nc3 {[%clk 0:00:51.7]} 3... c5 {[%clk 0:02:58.1]}
4. cxd5 {[%clk 0:00:51]} 4... exd5 {[%clk 0:02:58]} 5. dxc5 {[%clk 0:00:50.4]}
5... d4 {[%clk 0:02:57.7]} 6. Ne4 {[%clk 0:00:48.1]} 6... Bf5 {[%clk 0:02:57.5]}
7. Ng3 {[%clk 0:00:47.7]} 7... Bg6 {[%clk 0:02:50.1]} 8. e3 {[%clk 0:00:47.9]}
8... Bxc5 {[%clk 0:02:46.5]} 9. Bb5+ {[%clk 0:00:47]} 9... Nc6 {[%clk
0:02:46.2]} 10. exd4 {[%clk 0:00:45.8]} 10... Bxd4 {[%clk 0:02:39.8]} 11. Nf3
{[%clk 0:00:45.6]} 11... Qa5+ {[%clk 0:02:35.1]} 12. Qd2 {[%clk 0:00:42.7]}
12... Qxb5 {[%clk 0:02:27.9]} 13. Nxd4 {[%clk 0:00:42.5]} 13... Nxd4 {[%clk
0:02:24.2]} 14. Qxd4 {[%clk 0:00:42.4]} 14... Nf6 {[%clk 0:02:21.1]} 15. a4
{[%clk 0:00:37.2]} 15... Qa6 {[%clk 0:02:14.1]} 16. b4 {[%clk 0:00:29.6]} 16...
O-O {[%clk 0:02:11.2]} 17. b5 {[%clk 0:00:29.4]} 17... Rfe8+ {[%clk 0:02:11.5]}
18. Kf1 {[%clk 0:00:28.3]} 18... Qe6 {[%clk 0:02:06.9]} 19. Be3 {[%clk
0:00:26.9]} 19... Rad8 {[%clk 0:02:05]} 20. Qc3 {[%clk 0:00:22]} 20... Nd5
{[%clk 0:02:03.1]} 21. Qb3 {[%clk 0:00:19.7]} 21... Nxe3+ {[%clk 0:02:02.7]} 22.
Qxe3 {[%clk 0:00:20.6]} 22... Qc4+ {[%clk 0:02:01.7]} 0-1